bitfinex-derivatives/quotes_ETHF0:USTF0_20250607
["timestamp","ask_amount","ask_price","bid_price","bid_amount"]
[1749272270249,2.08586856,2490.6,2490.5,0.06951834]
[1749272270449,3.42906856,2490.6,2490.5,0.87202834]
[1749272271550,2.62658856,2490.6,2490.5,0.87202834]
[1749272273058,1.28338856,2490.6,2490.5,0.87202834]
[1749272273860,2.08586856,2490.6,2490.5,0.06951834]
[1749272275560,2.08586856,2490.6,2490.5,0.87202834]
[1749272275962,2.08586856,2490.6,2490.5,0.06951834]
[1749272276361,6.63696856,2490.6,2490.5,0.06951834]
[1749272283271,4.49118856,2490.6,2490.5,0.87202834]
[1749272284166,5.29366856,2490.6,2490.5,0.87202834]
[1749272285073,5.29366856,2490.6,2490.5,0.06951834]
[1749272285778,6.56216856,2490.6,2490.5,0.06951834]
[1749272286268,7.76592856,2490.6,2490.0,0.80868482]
[1749272286473,4.01039,2490.3,2490.1,0.80264]
[1749272286670,2.72439856,2490.2,2490.0,0.00602482]
[1749272286867,2.72439856,2490.2,2490.0,0.80867482]
[1749272286868,1.28338856,2490.1,2490.0,0.80867482]
[1749272291976,0.6384,2490.2,2490.1,0.80264]
[1749272292176,1.91925444,2490.2,2490.1,0.80264]
[1749272294783,2.72167789,2490.2,2490.0,0.00602482]
[1749272294984,1.28065789,2490.1,2490.0,0.80869482]
[1749272297185,0.6384,2490.2,2490.1,0.80264]
[1749272297387,1.9189046,2490.2,2490.1,0.80264]
[1749272299391,1.9189046,2490.2,2490.1,0.87215834]
[1749272303787,1.9189046,2490.2,2490.1,0.06951834]
[1749272304193,1.9189046,2490.2,2490.1,0.87215834]
[1749272308689,1.2805046,2490.2,2490.1,0.87215834]
[1749272308886,6.73343,2490.8,2490.6,0.80247]
[1749272309083,0.80245,2490.7,2490.5,0.80249]
[1749272309292,5.33884,2490.8,2490.6,0.6742]
[1749272309696,2.13104,2490.8,2490.6,0.6742]
[1749272309986,0.80245,2490.7,2490.6,0.6742]
[1749272311497,2.13104,2490.8,2490.6,1.47668]
[1749272312396,0.80245,2490.7,2490.6,1.47668]
[1749272312702,2.13104,2490.8,2490.6,1.47668]
[1749272313897,0.80245,2490.7,2490.6,0.6742]
[1749272314400,2.13103,2490.8,2490.6,1.47668]
[1749272314902,0.80245,2490.7,2490.6,0.6742]
[1749272315102,2.13103,2490.8,2490.6,1.47666]
[1749272315496,2.13103,2490.8,2490.6,1.54617834]
[1749272315705,0.80243,2490.8,2490.6,1.54617834]
[1749272317189,5.2877,2491.1,2490.6,1.54617834]
[1749272317392,0.80245,2490.7,2490.6,0.74371834]
[1749272317600,0.80245,2490.7,2490.6,0.06951834]
[1749272318698,2.07405,2490.7,2490.6,0.06951834]
[1749272320906,3.35056381,2490.7,2490.6,0.06951834]
[1749272323810,3.35055222,2490.7,2490.6,0.06951834]
[1749272337517,3.35055222,2490.7,2490.6,0.00893587]
[1749272337718,0.80251,2490.6,2490.4,0.80254]
[1749272337920,1.27650222,2490.5,2490.4,0.80254]
[1749272340618,1.27856657,2490.5,2490.4,0.80254]
[1749272341014,1.27856657,2490.5,2490.4,2.17834]
[1749272341623,1.27856657,2490.5,2490.4,5.38614]
[1749272342018,0.43273273,2490.5,2490.4,10.38614]
[1749272342317,4.01014,2491.1,2490.9,0.80236]
[1749272342515,4.01014,2491.1,2491.0,0.6804]
[1749272343718,4.01014,2491.1,2491.0,0.37937995]
[1749272344719,3.2078,2491.1,2491.0,1.18172995]
[1749272346031,3.2078,2491.1,2491.0,1.25124829]
[1749272346422,4.01012,2491.1,2491.0,0.44889829]
[1749272346726,3.2078,2491.1,2491.0,1.25124829]
[1749272346926,4.01012,2491.1,2491.0,0.44889829]
[1749272349625,0.80232,2491.1,2491.0,0.44889829]
[1749272350128,0.80232,2491.1,2491.0,0.06951834]
[1749272353929,2.10599454,2491.1,2491.0,0.06951834]
[1749272354329,3.48289454,2491.1,2491.0,0.06951834]
[1749272355126,3.48288961,2491.1,2491.0,0.06951834]
[1749272360738,3.48295708,2491.1,2491.0,0.06951834]
[1749272366839,6.69075708,2491.1,2491.0,0.06951834]
[1749272370542,5.31385708,2491.1,2491.0,0.06951834]
[1749272371542,5.31385708,2491.1,2490.8,1.47709]
[1749272371543,0.80237,2491.0,2490.8,1.47709]
[1749272371737,1.3061672,2490.9,2490.8,1.47709]
[1749272372137,1.30642993,2491.0,2490.9,0.80238]
[1749272373642,1.30642993,2491.0,2490.9,2.14818]
[1749272374542,1.30642993,2491.0,2490.9,2.21769834]
[1749272383853,0.80232,2491.1,2491.0,0.80235]
[1749272384153,2.11412309,2491.2,2491.0,0.80235]
[1749272384450,1.30578827,2491.1,2491.0,0.80235]
[1749272386453,2.10810827,2491.1,2491.0,0.80235]
[1749272386853,1.30578827,2491.1,2491.0,0.80235]
[1749272387453,2.10810827,2491.1,2491.0,0.80235]
[1749272388047,1.30578827,2491.1,2491.0,0.80235]
[1749272388855,2.10811827,2491.1,2490.9,0.87188834]
[1749272389046,2.10813827,2491.0,2490.9,0.06951834]
[1749272389249,2.10813827,2491.0,2490.9,0.87189834]
[1749272389658,2.10813827,2491.0,2490.9,0.80238]
[1749272391052,2.10813827,2491.0,2490.8,1.4771]
[1749272391353,1.30578827,2490.9,2490.8,1.4771]
[1749272403169,1.30578827,2490.9,2490.8,2.7748]
[1749272404672,1.30578827,2490.9,2490.8,1.4771]
[1749272404865,1.30578827,2490.9,2490.8,1.54661834]
[1749272405171,2.10816827,2490.9,2490.8,0.06951834]
[1749272405470,3.38716827,2490.9,2490.8,0.06951834]
[1749272406076,3.38716827,2490.9,2490.8,0.87193834]
[1749272406269,3.38716827,2490.9,2490.8,0.06951834]
[1749272406878,0.80247,2490.7,2490.5,0.80251]
[1749272407174,1.30582203,2490.6,2490.5,0.80251]
[1749272408572,1.30582203,2490.6,2490.3,3.2078]
[1749272408875,0.80254,2490.4,2490.2,4.712]
[1749272409070,1.30582203,2490.3,2490.2,5.51461]
[1749272409964,1.30582203,2490.3,2490.2,0.80261]
[1749272411370,3.40422203,2490.3,2490.1,0.80263]
[1749272411571,3.40422203,2490.3,2490.0,4.71802482]
[1749272411572,0.6661,2490.2,2490.0,4.71802482]
[1749272411771,1.46871,2490.2,2490.0,0.80867482]
[1749272412776,1.46872,2490.2,2490.0,0.80868482]
[1749272413775,0.80264,2490.1,2490.0,0.00602482]
[1749272414377,0.80275,2489.8,2489.6,5.51579]
[1749272414576,0.6444,2489.7,2489.6,5.51579]
[1749272414980,1.44717,2489.7,2489.6,4.713]
[1749272415771,1.44717,2489.7,2489.5,0.80283]
[1749272417368,0.6444,2489.7,2489.4,6.21597482]
[1749272417670,1.44718,2489.7,2489.4,6.21597482]
[1749272417871,1.3287,2489.6,2489.5,0.80283]
[1749272418669,2.1315,2489.6,2489.4,1.50698482]
[1749272418874,2.1315,2489.6,2489.4,0.80888482]
[1749272420181,2.1315,2489.6,2489.5,0.06951834]
[1749272421377,1.3287,2489.6,2489.5,0.87234834]
[1749272422575,2.1315,2489.6,2489.5,0.06951834]
[1749272422779,1.3287,2489.6,2489.5,0.87234834]
[1749272423275,1.3287,2489.6,2489.5,0.06951834]
[1749272423676,2.1315,2489.6,2489.5,0.87234834]
[1749272423975,1.3287,2489.6,2489.5,0.87234834]
[1749272424281,2.1315,2489.6,2489.5,0.87234834]
[1749272424583,1.3287,2489.6,2489.5,0.87234834]
[1749272425481,2.1315,2489.6,2489.5,0.87234834]
[1749272425680,1.3287,2489.6,2489.5,0.87234834]
[1749272425881,2.1315,2489.6,2489.5,0.87234834]
[1749272426685,1.3287,2489.6,2489.5,0.87234834]
[1749272428078,2.1315,2489.6,2489.5,0.87234834]
[1749272428279,2.1315,2489.6,2489.5,0.06951834]
[1749272428879,5.3393,2489.6,2489.5,0.06951834]
[1749272432289,6.63411568,2489.6,2489.5,0.06951834]
[1749272440294,7.28001568,2489.6,2489.5,0.06951834]
[1749272445995,11.98701568,2489.6,2489.5,0.06951834]
[1749272452499,1.29481568,2489.6,2489.5,3.27731834]
[1749272452803,2.09761568,2489.6,2489.5,2.08541834]
[1749272453396,1.29481568,2489.6,2489.5,2.88824834]
[1749272453806,1.29481568,2489.6,2489.5,2.08541834]
[1749272454505,2.09761568,2489.6,2489.5,2.08541834]
[1749272457907,1.29481568,2489.6,2489.5,2.08541834]
[1749272458112,2.09761568,2489.6,2489.5,2.08541834]
[1749272459009,2.09761568,2489.6,2489.5,0.76941834]
[1749272463114,2.09761568,2489.6,2489.5,0.06951834]
[1749272464801,3.36401568,2489.6,2489.5,0.06951834]
[1749272465306,0.80283,2489.5,2489.4,0.00602482]
[1749272465513,2.09764568,2489.5,2489.4,0.00602482]
[1749272469511,0.80283,2489.5,2489.4,0.00602482]
[1749272469704,2.10243982,2489.5,2489.4,0.00602482]
[1749272472210,1.29960982,2489.5,2489.4,0.80889482]
[1749272472618,1.29960982,2489.5,2489.4,2.77659482]
[1749272473008,1.29960982,2489.5,2489.4,1.97372482]
[1749272473309,2.10243982,2489.5,2489.4,1.97372482]
[1749272475814,2.10243982,2489.5,2489.4,0.00602482]
[1749272476516,3.40033982,2489.5,2489.4,0.00602482]
[1749272476817,2.10243982,2489.5,2489.4,0.00602482]
[1749272480120,2.10243982,2489.5,2489.4,0.07554316]
[1749272481513,1.29960982,2489.5,2489.4,0.87841316]
[1749272482015,1.29960982,2489.5,2489.4,2.23461316]
[1749272483016,2.10243982,2489.5,2489.4,1.43174316]
[1749272484714,2.10243982,2489.5,2489.4,0.07554316]
[1749272485819,2.76253982,2489.5,2489.4,0.07554316]
[1749272487112,2.10243982,2489.5,2489.4,0.07554316]
[1749272488221,1.29960982,2489.5,2489.4,0.87841316]
[1749272488520,2.10243982,2489.5,2489.4,0.07554316]
[1749272490917,2.10243982,2489.5,2489.4,0.73074316]
[1749272497625,2.10243982,2489.5,2489.4,0.07554316]
[1749272498421,2.78753982,2489.5,2489.4,0.07554316]
[1749272502925,5.99533982,2489.5,2489.4,0.07554316]
[1749272504330,5.99962257,2489.5,2489.4,0.07554316]
[1749272504731,5.99962257,2489.5,2489.2,3.41548]
[1749272504732,0.8029,2489.3,2489.2,3.41548]
[1749272505127,2.10679257,2489.3,2489.2,3.41548]
[1749272505432,4.03129257,2489.3,2489.2,3.41548]
[1749272509641,4.03129257,2489.3,2489.2,3.48499834]
[1749272519239,1.30389257,2489.3,2489.2,4.28792834]
[1749272519441,1.30389257,2489.3,2489.2,9.28792834]
[1749272519643,3.2078,2489.5,2489.4,0.80287]
[1749272519842,1.29535707,2489.5,2489.4,0.80287]
[1749272520239,1.29535707,2489.5,2489.4,0.6692]
[1749272520647,1.29535707,2489.5,2489.4,2.75337]
[1749272521246,1.29503602,2489.5,2489.4,2.75337]
[1749272522243,1.29503602,2489.5,2489.4,1.9505]
[1749272522548,0.80276,2489.8,2489.5,0.80283]
[1749272522742,1.33040356,2489.7,2489.6,2.1265]
[1749272523148,2.13317356,2489.7,2489.6,1.3237]
[1749272523349,0.80283,2489.5,2489.4,0.6692]
[1749272523547,2.13323356,2489.5,2489.4,0.6692]
[1749272523753,0.8029,2489.3,2489.2,4.18009834]
[1749272523957,2.13330356,2489.3,2489.2,3.48499834]
[1749272524452,1.33040356,2489.3,2489.2,3.48499834]
[1749272524653,1.33040356,2489.4,2489.2,4.80869834]
[1749272524955,1.33040356,2489.3,2489.2,4.80869834]
[1749272525155,2.13328356,2489.4,2489.2,4.80869834]
[1749272525454,1.33040356,2489.3,2489.2,4.80869834]
[1749272527660,2.13330356,2489.3,2489.2,4.80869834]
[1749272532261,1.33040356,2489.3,2489.2,4.80869834]
[1749272532562,2.13330356,2489.3,2489.2,4.80869834]
[1749272534560,1.33040356,2489.3,2489.2,5.61162834]
[1749272534760,2.13330356,2489.3,2489.2,4.80869834]
[1749272534963,1.33040356,2489.3,2489.2,4.80869834]
[1749272535263,1.33040356,2489.3,2489.2,5.61162834]
[1749272535459,2.13330356,2489.3,2489.2,5.44659834]
[1749272536263,1.33040356,2489.3,2489.2,6.24952834]
[1749272536463,2.13330356,2489.3,2489.2,6.24952834]
[1749272536763,1.33040356,2489.3,2489.2,6.24952834]
[1749272537357,2.13443334,2489.3,2489.2,5.44659834]
[1749272538264,1.33153334,2489.3,2489.2,6.24952834]
[1749272540066,2.13443334,2489.3,2489.2,6.24952834]
[1749272541969,2.13443334,2489.3,2489.2,4.12289834]
[1749272542168,2.13443334,2489.3,2489.2,3.48499834]
[1749272543169,3.44553334,2489.3,2489.2,3.48499834]
[1749272544167,1.96583334,2489.3,2489.2,4.28792834]
[1749272545665,2.76873334,2489.3,2489.2,3.48499834]
[1749272551574,1.96583334,2489.3,2489.2,4.28792834]
[1749272552474,1.96715384,2489.3,2489.2,4.28792834]
[1749272556275,1.96715384,2489.3,2489.2,7.49572834]
[1749272556976,1.33285384,2489.3,2489.2,7.49572834]
[1749272557967,1.33285384,2489.3,2489.2,8.89652834]
[1749272560081,1.33285384,2489.3,2489.2,7.49572834]
[1749272566472,1.33285384,2489.3,2489.2,8.88072834]
[1749272568481,1.33285384,2489.3,2489.2,13.57672834]
[1749272569077,1.33285384,2489.3,2489.2,12.19172834]
[1749272569477,1.33285384,2489.3,2489.2,11.38879834]
[1749272569685,2.13575384,2489.3,2489.2,12.19172834]
[1749272570278,2.13575384,2489.3,2489.2,11.38879834]
[1749272570686,2.13575384,2489.3,2489.2,8.18099834]
[1749272571986,2.13575384,2489.3,2489.2,3.48499834]
[1749272573188,2.13575384,2489.3,2489.2,4.28792834]
[1749272573690,2.13575384,2489.3,2489.2,3.48499834]
[1749272575189,2.13718095,2489.3,2489.2,3.48499834]
[1749272577585,2.79278095,2489.3,2489.2,3.48499834]
[1749272580497,2.79294787,2489.3,2489.2,3.48499834]
[1749272583201,6.00074787,2489.3,2489.2,3.48499834]
[1749272583497,6.00074787,2489.3,2489.2,3.09338799]
[1749272584401,6.00074787,2489.3,2489.2,2.79214955]
[1749272589611,5.99896785,2489.3,2489.2,2.79214955]
[1749272591410,2.79116785,2489.3,2489.2,2.79214955]
[1749272598923,2.13556785,2489.3,2489.2,2.79214955]
[1749272604329,3.53336785,2489.3,2489.2,2.09927237]
[1749272604532,0.80296,2489.1,2489.0,0.00602482]
[1749272604735,2.13562785,2489.1,2489.0,0.00602482]
[1749272611141,2.13544318,2489.1,2489.0,0.00602482]
[1749272614241,2.13544318,2489.1,2489.0,0.07554316]
[1749272615634,3.42334318,2489.1,2489.0,0.07554316]
[1749272616539,2.09086,2489.1,2489.0,0.07554316]
[1749272616745,3.41421835,2489.1,2489.0,0.07554316]
[1749272623654,2.12631835,2489.1,2489.0,0.07554316]
[1749272624652,2.12636364,2489.1,2489.0,0.07554316]
[1749272631365,0.80303,2488.9,2488.8,0.6625]
[1749272631754,2.12643364,2488.9,2488.8,0.6625]
[1749272633055,2.12785635,2488.9,2488.8,0.6625]
[1749272638452,2.12856015,2488.9,2488.8,0.6625]
[1749272639854,1.32553015,2488.9,2488.8,0.6625]
[1749272640058,1.32553015,2488.9,2488.8,4.67336]
[1749272641359,2.12856015,2488.9,2488.8,4.67336]
[1749272641661,1.32553015,2488.9,2488.8,4.67336]
[1749272643358,2.12856015,2488.9,2488.8,3.8703]
[1749272643560,0.80308,2488.8,2488.6,2.13572482]
[1749272643758,1.32553015,2488.7,2488.6,2.13572482]
[1749272644466,2.12862015,2488.7,2488.6,1.33262482]
[1749272644663,2.12862015,2488.7,2488.6,1.40214316]
[1749272645166,2.12862015,2488.7,2488.6,2.20526316]
[1749272645465,2.12862015,2488.7,2488.6,1.40214316]
[1749272646261,2.12862015,2488.7,2488.6,2.20527316]
[1749272647469,1.32553015,2488.7,2488.6,2.20527316]
[1749272648562,2.12862015,2488.7,2488.6,2.20527316]
[1749272649169,2.12862015,2488.7,2488.6,1.40214316]
[1749272649369,2.12862015,2488.7,2488.6,0.07554316]
[1749272650072,3.42422015,2488.7,2488.6,0.06951834]
[1749272650370,0.80328,2488.2,2488.0,0.80332]
[1749272650570,2.00903015,2488.1,2488.0,0.80332]
[1749272651968,1.32553015,2488.1,2488.0,0.80332]
[1749272652170,0.00602482,2488.3,2488.2,0.80325]
[1749272652579,1.32841303,2488.3,2488.2,4.01105]
[1749272653072,0.00602482,2488.3,2488.2,13.69905]
[1749272653381,0.00602482,2488.3,2488.2,10.08745]
[1749272660080,0.00602482,2488.3,2488.2,10.15696834]
[1749272660873,0.00602482,2488.3,2488.2,8.76856834]
[1749272663975,0.00602482,2488.3,2488.2,8.76456834]
[1749272664177,0.00602482,2488.3,2488.2,5.55676834]
[1749272667083,0.00602482,2488.3,2488.2,0.87276834]
[1749272670886,0.00602482,2488.3,2488.2,4.08056834]
[1749272671086,0.00602482,2488.3,2488.2,6.06586834]
[1749272673992,0.00602482,2488.3,2488.2,2.85806834]
[1749272674191,0.00602482,2488.3,2488.2,6.06586834]
[1749272681503,0.00602482,2488.3,2488.2,2.85806834]
[1749272681702,0.00602482,2488.3,2488.2,6.06586834]
[1749272689012,0.00602482,2488.3,2488.2,4.71866834]
[1749272697408,0.00602482,2488.3,2488.2,9.39966834]
[1749272702510,0.00602482,2488.3,2488.2,10.67136834]
[1749272702913,1.2848,2488.9,2488.8,0.80306]
[1749272703116,1.99840681,2488.9,2488.8,4.01086]
[1749272705113,1.99690331,2488.9,2488.8,4.01086]
[1749272705713,1.99690331,2488.9,2488.8,4.08037834]
[1749272706620,0.6732,2488.9,2488.8,4.08037834]
[1749272706913,1.99625953,2488.9,2488.8,4.08037834]
[1749272707114,3.36655953,2488.9,2488.8,4.08037834]
[1749272707517,2.0435,2488.9,2488.8,4.08037834]
[1749272711821,2.0435,2488.9,2488.8,0.87257834]
[1749272712321,4.1692927,2488.9,2488.8,0.06951834]
[1749272714220,12.3770927,2488.9,2488.8,0.06951834]
[1749272715724,12.3770927,2488.9,2488.8,0.00436031]
[1749272717526,7.3770927,2488.9,2488.8,0.00436031]
[1749272722823,6.0067927,2488.9,2488.8,0.00436031]
[1749272723025,2.7989927,2488.9,2488.8,0.00436031]
[1749272726832,1.9959627,2488.9,2488.8,0.80742031]
[1749272727831,2.7989927,2488.9,2488.8,0.00436031]
[1749272730234,1.9959627,2488.9,2488.8,0.00436031]
[1749272730534,2.7989927,2488.9,2488.8,0.00436031]
[1749272730735,1.9959627,2488.9,2488.8,0.80742031]
[1749272731734,2.7989927,2488.9,2488.8,0.00436031]
[1749272732032,1.9959627,2488.9,2488.8,0.80742031]
[1749272732231,0.6732,2488.9,2488.8,0.80742031]
[1749272732432,1.99593032,2488.9,2488.8,0.80742031]
[1749272732935,1.32273032,2488.9,2488.8,0.80742031]
[1749272735336,1.32273032,2488.9,2488.8,4.01522031]
[1749272736736,1.32273032,2488.9,2488.8,0.80742031]
[1749272737336,2.12576032,2488.9,2488.8,0.00436031]
[1749272737733,2.1261459,2488.9,2488.8,0.00436031]
[1749272738034,2.7722459,2488.9,2488.8,0.00436031]
[1749272741941,4.8282459,2488.9,2488.8,0.00436031]
[1749272742841,0.80309,2488.7,2488.6,0.00602482]
[1749272743029,4.01089,2488.7,2488.6,0.00602482]
[1749272743234,5.3340059,2488.7,2488.6,0.00602482]
[1749272743540,6.6955059,2488.7,2488.6,0.00602482]
[1749272749441,6.6955059,2488.7,2488.1,2.17616]
[1749272749442,0.80326,2488.2,2488.1,2.17616]
[1749272749640,0.80324,2488.3,2488.1,2.17616]
[1749272749839,1.49546,2488.2,2488.1,1.3729]
[1749272750841,0.80332,2488.0,2487.9,3.2078]
[1749272751144,0.80334,2488.0,2487.8,1.47406]
[1749272751343,0.80334,2488.0,2487.7,6.0128]
[1749272751344,0.80337,2487.9,2487.7,0.80341]
[1749272751544,1.49557,2487.9,2487.7,0.80341]
[1749272751939,1.49557,2487.9,2487.8,0.80338]
[1749272752141,1.49557,2487.9,2487.7,0.80339]
[1749272752541,1.49557,2487.9,2487.8,0.80338]
[1749272752941,0.6922,2487.9,2487.8,0.80338]
[1749272758647,0.80342,2487.7,2487.6,6.0112]
[1749272758858,0.80341,2487.8,2487.6,6.0112]
[1749272759059,0.80341,2487.8,2487.6,6.81464]
[1749272759351,0.80342,2487.7,2487.6,6.0112]
[1749272759656,0.80342,2487.7,2487.6,1.3332]
[1749272760552,1.3732,2487.9,2487.4,0.8035]
[1749272760752,1.47757,2487.6,2487.4,5.4785]
[1749272761461,0.80348,2487.5,2487.3,1.43571]
[1749272761651,0.80351,2487.4,2487.3,5.3082]
[1749272762051,0.80351,2487.4,2487.3,4.676]
[1749272762456,0.80351,2487.4,2487.2,4.08956]
[1749272762956,0.80353,2487.4,2487.2,4.08957]
[1749272763661,0.80355,2487.3,2487.2,3.28599]
[1749272764554,0.80355,2487.3,2487.2,3.35550834]
[1749272767763,0.80355,2487.3,2487.2,4.15908834]
[1749272768666,0.80353,2487.4,2487.2,4.15908834]
[1749272770367,0.80355,2487.3,2487.2,4.15908834]
[1749272771370,0.80353,2487.4,2487.2,4.15908834]
[1749272772072,0.80349,2487.5,2487.3,0.80352]
[1749272772267,0.6741,2487.6,2487.2,3.35550834]
[1749272772463,9.35961,2487.8,2487.6,0.80344]
[1749272772672,4.68258,2487.8,2487.7,0.6996]
[1749272772973,6.00598389,2487.8,2487.7,0.6996]
[1749272773469,2.79818389,2487.8,2487.7,0.6996]
[1749272777574,0.80342,2487.7,2487.6,0.6953]
[1749272777776,2.12682389,2487.7,2487.6,0.6953]
[1749272780974,2.12682389,2487.7,2487.6,0.76481834]
[1749272782577,2.12682389,2487.7,2487.6,0.06951834]
[1749272783272,0.80355,2487.3,2487.2,0.07819]
[1749272783473,2.12695389,2487.3,2487.2,0.07819]
[1749272784384,2.13065719,2487.3,2487.2,0.07819]
[1749272784882,5.33845719,2487.3,2487.2,0.07819]
[1749272790385,2.00903,2487.1,2486.3,7.8818]
[1749272790578,0.80374,2486.8,2486.6,0.6522]
[1749272790876,0.80374,2486.8,2486.7,0.6713]
[1749272791382,2.13192216,2486.8,2486.7,2.041]
[1749272794585,2.13192216,2486.8,2486.7,0.6713]
[1749272794981,2.13192216,2486.8,2486.7,0.74081834]
[1749272803881,0.80374,2486.8,2486.7,0.74081834]
[1749272804081,2.12867265,2486.8,2486.7,0.74081834]
[1749272804394,0.80374,2486.8,2486.7,0.74081834]
[1749272804602,2.128695,2486.8,2486.7,0.74081834]
[1749272804992,0.80374,2486.8,2486.7,0.74081834]
[1749272805194,2.128805,2486.8,2486.7,0.74081834]
[1749272809587,2.128805,2486.8,2486.7,0.06951834]
[1749272809795,2.128805,2486.8,2486.3,3.2078]
[1749272809796,2.00935,2486.7,2486.3,3.2078]
[1749272809987,2.00935,2486.7,2486.1,4.675]
[1749272809988,0.8039,2486.2,2486.1,4.675]
[1749272811193,0.8039,2486.3,2486.1,4.675]
[1749272811494,0.8039,2486.2,2486.1,6.0305]
[1749272812101,0.8039,2486.2,2486.1,4.675]
[1749272813394,0.80389,2486.3,2486.1,5.47893]
[1749272813591,0.80987482,2486.4,2486.2,0.8039]
[1749272813786,0.80987482,2486.4,2486.3,0.6918]
[1749272813992,2.14115564,2486.4,2486.3,0.6918]
[1749272816498,1.33730564,2486.4,2486.3,1.49567]
[1749272816698,1.33730564,2486.4,2486.3,2.84097]
[1749272818302,1.33730564,2486.4,2486.3,6.04877]
[1749272818504,0.00602482,2486.4,2486.3,6.04877]
[1749272818803,1.33715462,2486.4,2486.3,6.04877]
[1749272819304,0.00602482,2486.4,2486.3,6.04877]
[1749272820304,1.46196,2487.0,2486.8,0.80369]
[1749272820490,1.46196,2487.0,2486.9,0.658]
[1749272820694,2.15964194,2487.0,2486.9,0.658]
[1749272825509,2.15964194,2487.0,2486.9,0.72751834]
[1749272825800,2.15964194,2487.0,2486.9,0.06951834]
[1749272837319,1.35598194,2487.0,2486.9,0.87318834]
[1749272837514,4.67571482,2487.2,2487.0,0.80361]
[1749272837707,1.35567784,2487.1,2487.0,0.80361]
[1749272838011,3.87212482,2487.2,2487.1,0.80361]
[1749272838211,5.22778635,2487.2,2487.1,0.80361]
[1749272838821,6.03136635,2487.2,2487.1,0.80361]
[1749272839425,5.22778635,2487.2,2487.1,0.80361]
[1749272839621,6.03136635,2487.2,2486.9,0.06951834]
[1749272839818,3.87212482,2487.2,2487.0,0.80362]
[1749272840120,4.67572482,2487.2,2487.0,0.80362]
[1749272840323,0.80361,2487.1,2487.0,0.80362]
[1749272840526,4.67572482,2487.2,2487.0,0.80362]
[1749272840822,4.67572482,2487.2,2487.1,0.06951834]
[1749272841021,6.03118565,2487.2,2487.1,0.87312834]
[1749272844025,6.03118565,2487.2,2487.1,0.06951834]
[1749272844526,6.03118565,2487.2,2487.1,0.87312834]
[1749272844731,6.03118565,2487.2,2487.1,0.06951834]
[1749272845728,5.22758565,2487.2,2487.1,0.06951834]
[1749272845924,5.22758565,2487.2,2487.1,0.87312834]
[1749272849334,6.03116565,2487.2,2487.1,0.06951834]
[1749272850435,6.03116565,2487.2,2487.1,0.87312834]
[1749272852332,5.22758565,2487.2,2487.1,0.87312834]
[1749272856339,2.01978565,2487.2,2487.1,0.87312834]
[1749272856940,2.01978565,2487.2,2487.1,1.55502834]
[1749272860043,2.82336565,2487.2,2487.1,0.06951834]
[1749272861344,2.82336565,2487.2,2487.1,0.87312834]
[1749272861744,2.82336565,2487.2,2487.1,0.06951834]
[1749272865150,1.46790482,2487.2,2487.1,0.06951834]
[1749272865647,2.84354843,2487.2,2487.1,0.06951834]
[1749272866549,1.46790482,2487.2,2487.1,0.06951834]
[1749272866950,2.84371645,2487.2,2487.1,0.06951834]
[1749272867448,1.46790482,2487.2,2487.1,0.06951834]
[1749272868651,2.84412038,2487.2,2487.1,0.06951834]
[1749272868950,4.67570482,2487.2,2487.1,0.06951834]
[1749272869851,6.05196101,2487.2,2487.1,0.06951834]
[1749272871451,2.04058101,2487.2,2487.1,0.87312834]
[1749272873053,2.04007169,2487.2,2487.1,0.87312834]
[1749272875050,1.38177169,2487.2,2487.1,0.87312834]
[1749272875558,1.38177169,2487.2,2487.1,2.22222834]
[1749272880761,1.38121609,2487.2,2487.1,2.22222834]
[1749272885559,1.38121609,2487.2,2487.1,6.88922834]
[1749272885865,0.00602482,2487.2,2487.1,11.88922834]
[1749272887358,0.00602482,2487.2,2487.1,6.88922834]
[1749272889255,0.00602482,2487.2,2487.1,0.87312834]
[1749272889456,0.00602482,2487.2,2487.1,4.73651834]
[1749272889651,0.65392482,2487.2,2487.1,4.73651834]
[1749272889857,2.02823606,2487.2,2487.1,4.73651834]
[1749272890262,2.02823606,2487.2,2487.1,5.54012834]
[1749272898373,2.02823606,2487.2,2487.1,4.73651834]
[1749272898564,2.02823606,2487.2,2487.1,0.06951834]
[1749272898873,2.02823606,2487.2,2487.1,0.87312834]
[1749272900275,2.83181606,2487.2,2487.1,0.06951834]
[1749272901171,4.13841606,2487.2,2487.1,0.06951834]
[1749272917382,2.83181606,2487.2,2487.1,0.06951834]
[1749272917578,3.2078,2487.5,2487.1,0.06951834]
[1749272917782,0.6798,2488.5,2488.0,0.8033]
[1749272917984,0.6798,2488.5,2487.4,5.21651]
[1749272917985,0.80324,2488.3,2487.8,4.665]
[1749272918280,0.80332,2488.0,2487.9,0.6839]
[1749272918476,3.2078,2488.2,2487.7,7.8728]
[1749272918685,4.01118,2487.8,2487.7,0.00602482]
[1749272919074,6.04938,2487.8,2487.7,0.00602482]
[1749272929803,7.37019857,2487.8,2487.7,0.00602482]
[1749272930901,7.37016995,2487.8,2487.7,0.00602482]
[1749272931101,7.37016995,2487.8,2487.7,0.07554316]
[1749272931891,4.16236995,2487.8,2487.7,0.07554316]
[1749272936402,2.84158,2487.8,2487.7,0.07554316]
[1749272936602,4.1628923,2487.8,2487.7,0.07554316]
[1749272939296,2.1246923,2487.8,2487.7,0.07554316]
[1749272939509,1.3213123,2487.8,2487.7,0.07554316]
[1749272939703,2.1246923,2487.8,2487.7,0.07554316]
[1749272940204,2.1246923,2487.8,2487.7,0.71154316]
[1749272940806,2.1246923,2487.8,2487.7,1.51496316]
[1749272942303,1.3213123,2487.8,2487.7,1.51496316]
[1749272943804,0.00602482,2488.2,2488.1,0.80329]
[1749272944007,1.32845317,2488.2,2488.1,0.80329]
[1749272944307,1.32845317,2488.2,2488.1,5.80329]
[1749272944308,0.00602482,2488.2,2488.1,5.80329]
[1749272944607,0.00602482,2488.2,2488.1,2.76679]
[1749272954419,0.00602482,2488.2,2488.1,7.76679]
[1749272956121,3.2078,2488.8,2488.7,0.80309]
[1749272957221,3.2078,2488.8,2488.7,2.09399]
[1749272957920,0.00602482,2489.0,2488.8,0.80303]
[1749272958121,0.80902482,2489.0,2488.8,0.80303]
[1749272958521,0.00602482,2489.0,2488.9,0.80303]
[1749272960325,0.00602482,2489.0,2488.8,0.80304]
[1749272960525,0.00602482,2489.0,2488.9,0.06951834]
[1749272960825,0.80902482,2489.0,2488.9,0.06951834]
[1749272961026,2.12832482,2489.0,2488.9,0.06951834]
[1749272961225,2.78012482,2489.0,2488.9,0.06951834]
[1749272967535,4.12923174,2489.0,2488.9,0.06951834]
[1749272968829,2.80993174,2489.0,2488.9,0.06951834]
[1749272969024,1.46082482,2489.0,2488.9,0.06951834]